bitfinex/quotes_BTCUSD_20250123
["timestamp","ask_amount","ask_price","bid_price","bid_amount"]
[1737664406998,0.284095,105600.0,105570.0,0.28464427]
[1737664407372,0.094714,105580.0,105570.0,0.00049427]
[1737664407578,0.38803271,105580.0,105570.0,0.00049427]
[1737664407983,1.88803271,105580.0,105570.0,0.00049427]
[1737664408182,1.594714,105580.0,105570.0,0.00049427]
[1737664408340,1.594714,105580.0,105570.0,0.00079226]
[1737664408541,0.094714,105580.0,105570.0,0.00079226]
[1737664408747,0.264714,105580.0,105570.0,0.00079226]
[1737664408954,0.58103271,105580.0,105570.0,0.00079226]
[1737664409158,0.339497,105550.0,105530.0,0.0001423]
[1737664409367,0.09475,105540.0,105530.0,0.0001423]
[1737664409834,0.434244,105550.0,105520.0,0.2816873]
[1737664410048,0.189466,105560.0,105520.0,0.189536]
[1737664410253,0.09477,105520.0,105500.0,0.284395]
[1737664410461,0.094777,105510.0,105500.0,6e-05]
[1737664410660,0.094777,105510.0,105500.0,0.00020821]
[1737664410885,0.54131871,105510.0,105460.0,0.00029778]
[1737664411091,0.16978,105510.0,105470.0,0.189627]
[1737664411296,0.284315,105520.0,105490.0,0.094793]
[1737664411503,0.095,105540.0,105480.0,0.189592]
[1737664411712,0.095,105540.0,105470.0,0.189627]
[1737664411713,0.284284,105530.0,105500.0,0.094784]
[1737664411934,0.29331871,105570.0,105520.0,0.094768]
[1737664412149,0.48276771,105570.0,105520.0,0.189536]
[1737664412357,0.264444,105580.0,105550.0,0.094741]
[1737664412567,0.189447,105570.0,105510.0,0.15]
[1737664412772,0.31331871,105590.0,105560.0,0.473642]
[1737664412773,0.284122,105590.0,105560.0,0.473642]
[1737664412983,0.094741,105550.0,105540.0,0.05]
[1737664413184,0.094741,105550.0,105530.0,0.15]
[1737664413185,0.09475,105540.0,105530.0,0.15]
[1737664413445,0.094755,105540.0,105510.0,0.094773]
[1737664413654,0.434212,105560.0,105530.0,0.094759]
[1737664413854,0.15,105550.0,105530.0,0.094755]
[1737664414061,0.284126,105590.0,105550.0,0.189482]
[1737664414263,0.38802771,105590.0,105560.0,0.09473]
[1737664414462,0.094727,105570.0,105540.0,0.094748]
[1737664414692,0.15,105570.0,105550.0,0.094741]
[1737664414901,0.15,105570.0,105550.0,0.284224]
[1737664415223,1.65,105570.0,105550.0,0.09474]
[1737664415409,0.38852176,105590.0,105560.0,0.189465]
[1737664415612,0.00049305,105590.0,105540.0,0.239487]
[1737664415828,0.00049305,105590.0,105580.0,0.094714]
[1737664416074,0.00049305,105590.0,105580.0,0.083114]
[1737664416397,0.00049305,105590.0,105570.0,0.378868]
[1737664416398,0.00049305,105590.0,105560.0,0.094726]
[1737664416603,0.09519905,105590.0,105570.0,0.094723]
[1737664416807,0.15049305,105590.0,105580.0,0.094714]
[1737664417012,0.00049305,105590.0,105580.0,0.094714]
[1737664417805,0.00049305,105590.0,105570.0,0.37888]
[1737664418006,0.094722,105580.0,105550.0,0.189465]
[1737664418262,0.189429,105580.0,105540.0,0.094747]
[1737664418392,0.094751,105540.0,105510.0,0.09477]
[1737664418595,1.65,105570.0,105490.0,0.05]
[1737664418596,0.284245,105550.0,105520.0,0.094767]
[1737664418799,0.339502,105540.0,105480.0,0.234805]
[1737664419000,0.189501,105540.0,105490.0,0.189591]
[1737664419202,0.265378,105610.0,105550.0,0.189482]
[1737664419450,0.265378,105610.0,105560.0,0.189452]
[1737664419625,0.189426,105590.0,105560.0,0.094732]
[1737664419848,0.094709,105590.0,105570.0,0.094723]
[1737664420218,0.22,105570.0,105510.0,0.094771]
[1737664420383,0.15,105530.0,105460.0,0.05029778]
[1737664420617,0.094783,105510.0,105480.0,0.094797]
[1737664420825,0.094783,105510.0,105470.0,0.189611]
[1737664420826,0.28434,105510.0,105470.0,0.189611]
[1737664421009,0.284308,105520.0,105500.0,0.09508283]
[1737664421197,0.094777,105510.0,105500.0,0.00029883]
[1737664421906,0.244777,105510.0,105500.0,0.00029883]
[1737664422332,0.28431,105520.0,105500.0,0.00029883]
[1737664422535,0.094777,105510.0,105500.0,0.00029883]
[1737664422732,0.244777,105510.0,105500.0,0.00029883]
[1737664423786,0.15,105510.0,105500.0,0.00029883]
[1737664424115,0.244777,105510.0,105500.0,0.00029883]
[1737664424328,0.28431,105520.0,105500.0,0.09508183]
[1737664424534,0.244777,105510.0,105500.0,0.00029883]
[1737664424737,0.094777,105510.0,105500.0,0.00029883]
[1737664424930,0.284309,105520.0,105500.0,0.00029883]
[1737664425189,0.094752,105540.0,105500.0,0.18985983]
[1737664425393,0.094733,105560.0,105530.0,0.189519]
[1737664425599,0.284163,105580.0,105550.0,0.09474]
[1737664425805,0.0777423,105590.0,105530.0,0.189519]
[1737664426018,0.30991597,105580.0,105520.0,0.189521]
[1737664426218,0.189484,105550.0,105520.0,0.094767]
[1737664426429,0.434256,105540.0,105510.0,0.284317]
[1737664426635,0.189503,105540.0,105520.0,0.094768]
[1737664426839,0.094752,105540.0,105520.0,0.094761]
[1737664427044,0.284246,105550.0,105530.0,0.094758]
[1737664427227,0.378961,105560.0,105530.0,0.189504]
[1737664427466,0.094724,105570.0,105550.0,0.094736]
[1737664427669,0.61829492,105580.0,105540.0,0.189493]
[1737664427670,0.23942292,105580.0,105540.0,0.189493]
[1737664427876,0.52358792,105580.0,105560.0,0.094732]
[1737664428051,0.00049305,105580.0,105570.0,0.094723]
[1737664428489,0.18992305,105580.0,105550.0,0.189477]
[1737664428705,0.18992205,105580.0,105550.0,0.284215]
[1737664428938,0.189476,105560.0,105540.0,0.094748]
[1737664429108,0.28377597,105580.0,105570.0,0.094723]
[1737664429416,0.04435305,105580.0,105570.0,0.094723]
[1737664429618,0.32849905,105580.0,105550.0,0.378948]
[1737664429765,0.42322605,105580.0,105550.0,0.284206]
[1737664429986,0.189449,105570.0,105540.0,0.094748]
[1737664430197,0.189449,105570.0,105530.0,0.189518]
[1737664430393,0.15,105550.0,105500.0,0.00029883]
[1737664430577,0.244746,105550.0,105530.0,0.284274]
[1737664430777,0.47320797,105580.0,105540.0,0.189486]
[1737664430778,0.284177,105570.0,105540.0,0.189486]
[1737664430987,0.28377597,105580.0,105570.0,0.094723]
[1737664430988,0.04435305,105580.0,105570.0,0.094723]
[1737664431413,0.04435305,105580.0,105570.0,0.294723]
[1737664431636,0.0001423,105590.0,105580.0,0.294714]
[1737664431854,0.0380452,105650.0,105620.0,0.094671]
[1737664432058,0.0001422,105650.0,105630.0,0.094667]
[1737664432261,0.0001422,105650.0,105640.0,0.244661]
[1737664432465,0.00029016,105650.0,105630.0,0.473326]
[1737664432805,0.09494816,105650.0,105610.0,0.284049]
[1737664433009,0.00029016,105650.0,105620.0,0.094675]
[1737664433216,0.00029016,105650.0,105630.0,0.094662]
[1737664433391,0.00029016,105650.0,105630.0,0.284005]
[1737664433716,0.00029016,105650.0,105640.0,0.094661]
[1737664433851,0.00029016,105650.0,105630.0,0.283993]
[1737664434191,0.00029016,105650.0,105570.0,0.0895]
[1737664434398,0.18934,105630.0,105580.0,0.378843]
[1737664434549,0.473339,105640.0,105600.0,0.094695]
[1737664434757,0.28426216,105650.0,105600.0,0.189392]
[1737664434950,0.00029016,105650.0,105620.0,0.094676]
[1737664435161,0.00029016,105650.0,105620.0,0.189346]
[1737664435346,0.00029016,105650.0,105620.0,0.189344]
[1737664435548,0.00029016,105650.0,105630.0,0.094669]
[1737664435748,0.00029016,105650.0,105640.0,0.094661]
[1737664436019,0.00029016,105650.0,105620.0,0.189352]
[1737664436234,0.00029016,105650.0,105630.0,0.094667]
[1737664436447,0.28425316,105650.0,105620.0,0.15]
[1737664436671,0.00029016,105650.0,105620.0,0.434027]
[1737664436839,0.00029016,105650.0,105620.0,0.339353]
[1737664437056,0.00029016,105650.0,105630.0,0.094665]
[1737664437256,0.00029016,105650.0,105620.0,0.339345]
[1737664437459,0.00029016,105650.0,105630.0,0.094668]
[1737664437744,0.18960716,105650.0,105600.0,0.18938]
[1737664437945,0.09494216,105650.0,105620.0,0.094674]
[1737664438103,1.5,105640.0,105620.0,0.094679]
[1737664438303,1.5,105640.0,105610.0,0.528726]
[1737664438304,1.5,105640.0,105610.0,0.528725]
[1737664438625,1.5,105640.0,105610.0,0.15]
[1737664438824,1.5,105640.0,105610.0,0.244681]
[1737664439029,1.594662,105640.0,105600.0,0.473452]
[1737664439228,1.5,105640.0,105590.0,0.094701]
[1737664439432,0.094689,105610.0,105580.0,0.094711]
[1737664439610,0.094689,105610.0,105580.0,0.094712]
[1737664439808,1.5,105600.0,105580.0,0.284139]
[1737664440043,0.094689,105610.0,105580.0,0.284138]
[1737664440246,0.094677,105630.0,105590.0,0.189411]
[1737664440495,1.689352,105630.0,105580.0,0.189417]
[1737664440699,0.339333,105640.0,105580.0,0.189417]
[1737664441012,0.094697,105600.0,105570.0,0.284149]
[1737664441131,0.094697,105600.0,105570.0,0.094718]
[1737664441323,0.284092,105600.0,105560.0,0.473627]
[1737664441539,0.189395,105600.0,105550.0,0.189469]
[1737664441729,0.094717,105580.0,105550.0,0.284209]
[1737664442028,0.094727,105570.0,105530.0,0.239505]
[1737664442250,0.094727,105570.0,105540.0,0.284247]
[1737664442442,0.094708,105590.0,105550.0,0.378952]
[1737664442644,0.18938,105610.0,105580.0,0.094711]
[1737664442920,0.094708,105590.0,105560.0,0.189453]
[1737664443075,0.094708,105590.0,105560.0,0.434197]
[1737664443279,0.094704,105600.0,105570.0,0.094719]
[1737664443480,0.284098,105600.0,105570.0,0.094722]
[1737664443686,0.094704,105600.0,105570.0,0.094722]
[1737664443907,0.094725,105570.0,105540.0,0.189487]
[1737664444113,0.189459,105570.0,105530.0,0.284272]
[1737664444265,0.28415,105580.0,105530.0,0.189508]
[1737664444467,0.094724,105570.0,105540.0,0.284234]
[1737664444669,0.284172,105570.0,105540.0,0.284234]
[1737664445086,0.284172,105570.0,105510.0,0.189543]
[1737664445087,0.094743,105550.0,105510.0,0.189543]
[1737664445287,0.094743,105550.0,105520.0,0.284297]
[1737664445499,0.00014772,105550.0,105530.0,0.189519]
[1737664445708,0.00014772,105550.0,105540.0,0.09475]
[1737664446316,0.00014772,105550.0,105540.0,0.29475]
[1737664446538,0.0001422,105610.0,105590.0,0.284108]
[1737664446752,0.0001422,105610.0,105600.0,0.244696]
[1737664446753,0.00029033,105610.0,105600.0,0.244696]
[1737664446965,0.0001422,105650.0,105610.0,0.189376]
[1737664447170,0.094666,105640.0,105610.0,0.284059]
[1737664447374,0.00029025,105650.0,105620.0,0.189355]
[1737664447630,0.00029025,105650.0,105640.0,0.094661]
[1737664448102,0.00029025,105650.0,105640.0,0.117661]
[1737664448309,0.00029025,105650.0,105640.0,0.094661]
[1737664448525,0.00029025,105650.0,105640.0,0.244661]
[1737664448729,0.0001422,105690.0,105660.0,0.05]
[1737664448963,0.00063558,105690.0,105680.0,0.094625]
[1737664449392,0.4582241,105720.0,105690.0,0.283841]
[1737664449393,0.44900088,105720.0,105690.0,0.283841]
[1737664449588,0.44900088,105720.0,105700.0,0.283817]
[1737664449589,0.00014801,105720.0,105700.0,0.283817]
[1737664449793,0.00014801,105720.0,105700.0,0.283814]
[1737664450009,0.00014801,105720.0,105690.0,0.173]
[1737664450010,0.094602,105710.0,105690.0,0.173]
[1737664450244,0.18933901,105720.0,105690.0,0.094615]
[1737664450447,0.18933901,105720.0,105660.0,0.1465]
[1737664450448,0.00014801,105720.0,105660.0,0.1465]
[1737664450659,0.00014801,105720.0,105640.0,0.34319209]
[1737664450860,0.00014801,105720.0,105620.0,0.34548712]
[1737664450861,0.189275,105670.0,105620.0,0.344675]
[1737664451065,0.29319209,105660.0,105630.0,0.094668]
[1737664451277,0.29319209,105660.0,105620.0,0.284016]
[1737664451479,0.15,105650.0,105620.0,0.189357]
[1737664451693,0.244655,105650.0,105620.0,0.094676]
[1737664451902,0.244655,105650.0,105620.0,0.284031]
[1737664452107,0.244655,105650.0,105620.0,0.00049338]
[1737664452108,0.15,105650.0,105620.0,0.00049338]
[1737664452512,0.15,105650.0,105620.0,0.28451038]
[1737664452718,0.15,105650.0,105620.0,0.00049338]
[1737664452719,0.094667,105640.0,105620.0,0.00049338]
[1737664452931,0.33931,105650.0,105620.0,0.09517138]
[1737664452932,0.15,105650.0,105620.0,0.09517138]
[1737664453186,0.284095,105600.0,105570.0,0.284161]
[1737664453354,0.29319209,105590.0,105570.0,0.09487005]
[1737664453556,0.07,105620.0,105590.0,0.284102]
[1737664453557,0.29319209,105610.0,105590.0,0.284102]
[1737664453785,0.65612209,105630.0,105600.0,0.284079]
[1737664453995,0.56143709,105630.0,105590.0,0.189409]
[1737664454193,0.65611109,105630.0,105610.0,0.094686]
[1737664454415,0.46676409,105630.0,105610.0,0.094682]
[1737664454622,0.239234,105640.0,105630.0,0.09467]
[1737664454623,0.0499,105640.0,105630.0,0.09467]
[1737664454999,0.56547209,105670.0,105620.0,0.189343]
[1737664455256,0.083,105670.0,105660.0,0.094643]
[1737664455504,0.48246109,105670.0,105620.0,0.189343]
[1737664455655,0.38784409,105650.0,105630.0,0.473329]
[1737664455856,0.189305,105650.0,105630.0,0.094667]
[1737664456108,0.15,105640.0,105600.0,0.189393]
[1737664456266,0.189358,105620.0,105570.0,0.189447]
[1737664456646,0.29319209,105630.0,105610.0,0.378738]
[1737664456838,0.29319209,105630.0,105610.0,0.189361]
[1737664457064,0.094683,105620.0,105600.0,0.094693]
[1737664457358,0.57726109,105610.0,105590.0,0.094701]
[1737664457565,0.094702,105600.0,105580.0,0.284136]
[1737664457773,1.784109,105600.0,105580.0,0.284136]
[1737664457976,0.38789709,105590.0,105580.0,0.00014805]
[1737664458387,0.2776,105580.0,105500.0,0.02029883]
[1737664458599,0.29319209,105530.0,105520.0,0.101808]
[1737664458825,0.094733,105560.0,105540.0,0.09475]
[1737664459046,0.1276,105580.0,105530.0,0.284271]
[1737664459047,0.094743,105550.0,105530.0,0.284271]
[1737664459250,0.67216009,105550.0,105520.0,0.10229805]
[1737664459453,0.67216009,105550.0,105520.0,0.00753305]
[1737664459454,0.094759,105530.0,105520.0,0.00753305]
[1737664459874,0.379016,105540.0,105520.0,0.00753305]
[1737664459875,0.284256,105540.0,105520.0,0.19707005]
[1737664460075,0.284256,105540.0,105520.0,0.29183405]
[1737664460279,0.57742409,105550.0,105530.0,0.094757]
[1737664460492,0.094752,105540.0,105530.0,0.094758]
[1737664460697,0.284245,105550.0,105530.0,0.284275]
[1737664460911,0.67218809,105550.0,105520.0,0.19706605]
[1737664461124,0.094759,105530.0,105520.0,0.00753305]
[1737664461338,0.38795109,105530.0,105520.0,0.00753305]
[1737664461556,0.53795109,105530.0,105520.0,0.00753305]
[1737664461769,0.53795109,105530.0,105500.0,0.00029883]
[1737664461770,0.094777,105510.0,105500.0,0.00029883]
[1737664461976,0.304209,105560.0,105510.0,0.189555]
[1737664462182,0.57732709,105590.0,105560.0,0.189451]
[1737664462389,0.094716,105580.0,105560.0,0.094727]
[1737664462520,0.48260409,105590.0,105540.0,0.189499]
[1737664462752,0.284257,105540.0,105520.0,0.094766]
[1737664462964,0.094763,105530.0,105510.0,0.284313]
[1737664463188,0.094763,105530.0,105510.0,0.189554]
[1737664463189,0.29319209,105530.0,105510.0,0.189554]
[1737664463390,0.29319209,105530.0,105510.0,0.094774]
[1737664463589,0.38795509,105530.0,105510.0,0.18970213]
[1737664463888,0.23936488,105540.0,105530.0,0.189511]
[1737664464095,0.23936488,105540.0,105530.0,0.284263]
[1737664464220,0.23936488,105540.0,105530.0,0.094759]
[1737664464429,0.42886688,105540.0,105510.0,0.18970213]
[1737664464628,0.189496,105550.0,105510.0,0.00014813]
[1737664464629,0.33413288,105520.0,105510.0,0.00014813]
[1737664464960,0.23936488,105520.0,105510.0,0.09492513]
[1737664465184,0.094768,105520.0,105510.0,0.00014813]
[1737664465387,0.23936488,105520.0,105510.0,0.00014813]
[1737664465786,0.23936488,105520.0,105510.0,0.09492513]
[1737664466104,0.23936488,105520.0,105510.0,0.00014813]
[1737664467014,0.31486488,105540.0,105510.0,0.00014813]
[1737664467191,0.23936488,105540.0,105510.0,0.18968613]
[1737664467390,0.23936488,105560.0,105540.0,0.094748]
[1737664467719,0.42883288,105560.0,105510.0,0.00014813]
[1737664467942,0.38936488,105520.0,105510.0,0.00014813]
[1737664468150,0.15,105460.0,105420.0,0.0159928]
[1737664468381,0.33421388,105430.0,105420.0,0.0159928]
[1737664468599,0.23936488,105430.0,105420.0,0.01648787]
[1737664469020,0.0481,105450.0,105430.0,0.094844]
[1737664469021,0.28746488,105450.0,105430.0,0.094844]
[1737664469226,0.037969,105440.0,105420.0,0.30104387]
[1737664469402,0.037969,105440.0,105420.0,0.20618787]
[1737664469625,0.28746488,105450.0,105430.0,0.094849]
[1737664469835,0.0481,105450.0,105440.0,0.09484]
[1737664470061,0.037968,105450.0,105440.0,0.09484]
[1737664470321,0.0802,105500.0,105450.0,0.189663]
[1737664470529,0.094788,105500.0,105430.0,0.094849]
[1737664470677,0.48416003,105500.0,105460.0,0.094819]
[1737664470882,0.29458503,105480.0,105450.0,0.284472]
[1737664471199,0.087946,105510.0,105460.0,0.189645]
[1737664471410,0.29458503,105500.0,105470.0,0.189612]
[1737664471609,0.037946,105510.0,105500.0,0.094786]
[1737664471774,0.1283,105530.0,105510.0,0.284329]
[1737664471775,0.4224638,105530.0,105510.0,0.284329]
[1737664471978,0.4224638,105530.0,105500.0,0.00014772]
[1737664472194,0.4589408,105510.0,105500.0,0.00014772]
[1737664472393,0.4819408,105510.0,105500.0,0.00014772]
[1737664472620,0.094805,105480.0,105460.0,0.094821]
[1737664472825,0.2941638,105480.0,105470.0,0.094813]
[1737664473081,0.2941638,105500.0,105490.0,0.094795]
[1737664473321,0.5785268,105500.0,105460.0,0.00014822]
[1737664473506,0.2941638,105500.0,105480.0,0.094801]
[1737664473706,0.2941638,105500.0,105480.0,0.189607]
[1737664473964,0.2941638,105500.0,105460.0,0.00014822]
[1737664474169,0.3889798,105470.0,105430.0,0.189683]
[1737664474371,0.2941638,105470.0,105440.0,0.094834]
[1737664474600,0.3889808,105470.0,105440.0,0.189667]
[1737664474732,0.3889808,105470.0,105430.0,0.09534007]
[1737664474733,0.24483,105460.0,105430.0,0.09534007]
[1737664474933,0.434487,105460.0,105430.0,0.09534007]
[1737664475314,0.15,105460.0,105440.0,0.094838]
[1737664475519,0.244827,105460.0,105440.0,0.284512]
[1737664475645,0.4838288,105450.0,105430.0,0.00049507]
[1737664475851,0.5786628,105450.0,105430.0,0.09534107]
[1737664476052,0.09484,105440.0,105430.0,0.00049507]
[1737664476667,0.212807,105370.0,105310.0,0.02601919]
[1737664476911,0.53953405,105360.0,105350.0,0.00027055]
[1737664477099,0.56253405,105360.0,105350.0,0.00027055]
[1737664477567,0.38953405,105360.0,105350.0,0.00027055]
[1737664477747,0.42754105,105360.0,105350.0,0.00027055]
[1737664477913,0.42754105,105360.0,105350.0,0.00041896]
[1737664478121,0.45054105,105360.0,105350.0,0.00041896]
[1737664478319,0.42754105,105360.0,105350.0,0.00041896]
[1737664478690,0.33262905,105360.0,105350.0,0.00041896]
[1737664478903,0.29462205,105360.0,105350.0,0.09533596]
[1737664479113,0.29462205,105360.0,105350.0,0.28517896]
[1737664479322,0.168495,105380.0,105350.0,0.00041896]
[1737664479524,0.094912,105360.0,105350.0,0.00041896]
[1737664479946,0.244909,105370.0,105350.0,0.09533996]
[1737664480148,0.548087,105380.0,105350.0,0.19024796]
[1737664480320,0.168495,105380.0,105360.0,0.189825]
[1737664480613,0.094886,105390.0,105370.0,0.094903]
[1737664480831,0.09489,105390.0,105370.0,0.2847]
[1737664481042,0.03799,105390.0,105380.0,0.094893]
[1737664481245,0.189792,105380.0,105350.0,0.19024996]
[1737664481444,0.094899,105380.0,105360.0,0.09491]
[1737664481644,0.284661,105390.0,105370.0,0.094898]
[1737664481851,0.037991,105390.0,105380.0,0.094894]
[1737664482056,0.268449,105410.0,105360.0,0.189816]
[1737664482268,0.36332,105410.0,105390.0,0.094882]
[1737664482478,0.401304,105410.0,105390.0,0.094882]
[1737664482695,0.496183,105410.0,105390.0,0.094882]
[1737664482905,0.284638,105400.0,105380.0,0.284677]
[1737664483115,0.094868,105410.0,105400.0,0.094876]
[1737664483326,0.189705,105430.0,105400.0,0.189753]
[1737664483535,0.417395,105430.0,105400.0,0.37965241]
[1737664483743,0.322534,105430.0,105410.0,0.2846]
[1737664483919,0.22768,105430.0,105410.0,0.189722]
[1737664484158,0.037978,105430.0,105420.0,0.094858]
[1737664484617,0.094795,105490.0,105440.0,0.189681]
[1737664484884,0.18987483,105500.0,105470.0,0.094807]
[1737664485124,0.189658,105460.0,105440.0,0.094838]
[1737664485364,0.284498,105450.0,105430.0,0.094846]
[1737664485513,0.379317,105460.0,105420.0,0.189712]
[1737664485843,1.5,105450.0,105440.0,0.094837]
[1737664486167,1.5,105450.0,105440.0,0.09484]
[1737664486315,1.594831,105450.0,105440.0,0.09484]
[1737664486534,1.5,105450.0,105440.0,0.09484]
[1737664487093,1.594831,105450.0,105440.0,0.09484]
[1737664487299,1.5,105450.0,105440.0,0.09484]
[1737664488206,0.00049284,105460.0,105450.0,0.094831]
[1737664489542,0.09531884,105460.0,105440.0,0.474167]
[1737664489875,0.09531884,105460.0,105450.0,0.094831]
[1737664490052,0.09531884,105460.0,105440.0,0.474167]
[1737664490257,0.00049284,105460.0,105450.0,0.094831]
[1737664491661,0.00049284,105460.0,105450.0,0.33441588]
[1737664491863,0.00049284,105460.0,105450.0,0.55741588]
[1737664492289,0.00049284,105460.0,105450.0,0.50741588]
[1737664492490,0.00079188,105460.0,105450.0,0.55741588]
[1737664492890,0.00079188,105460.0,105450.0,0.48441588]
[1737664493065,0.00079188,105460.0,105450.0,0.33441588]
[1737664493493,0.00079188,105460.0,105450.0,0.50741588]
[1737664493894,0.00079188,105460.0,105450.0,0.48441588]
[1737664494090,0.00079188,105460.0,105450.0,0.244831]
[1737664494293,0.00079188,105460.0,105450.0,0.094831]
[1737664494694,0.00079188,105460.0,105450.0,0.244831]
[1737664494892,0.00079188,105460.0,105450.0,0.094831]
[1737664495071,0.28525988,105460.0,105450.0,0.094831]
[1737664495342,0.00079188,105460.0,105440.0,0.094835]
[1737664495520,0.284508,105450.0,105430.0,0.0949844]
[1737664495750,1.974182,105450.0,105430.0,0.2846814]
[1737664495944,0.00029883,105500.0,105440.0,0.42925088]
[1737664496170,0.00029883,105500.0,105490.0,0.094795]
[1737664496349,0.00029883,105500.0,105490.0,0.117795]
[1737664496671,0.00029883,105500.0,105480.0,0.189594]
[1737664496871,0.094798,105490.0,105430.0,0.2501424]
[1737664496992,0.00029883,105500.0,105490.0,0.094795]
[1737664497402,0.28465883,105500.0,105480.0,0.473988]
[1737664497604,0.00029883,105500.0,105490.0,0.094795]
[1737664497812,0.09508883,105500.0,105490.0,0.094795]
[1737664498033,0.09508783,105500.0,105480.0,0.473989]
[1737664498288,0.28466283,105500.0,105480.0,0.473989]
[1737664498486,0.339602,105490.0,105470.0,0.09481]
[1737664498845,0.1216,105480.0,105430.0,0.17]
[1737664499016,0.477867,105410.0,105400.0,0.47143333]
[1737664499250,0.144912,105360.0,105340.0,0.094928]
[1737664499471,0.284728,105370.0,105340.0,0.094923]
[1737664499670,0.02,105360.0,105350.0,0.09567939]
[1737664499897,0.1149,105380.0,105360.0,0.094911]
[1737664500090,0.164912,105360.0,105350.0,0.00076339]
[1737664500319,0.244912,105360.0,105350.0,0.00076339]
[1737664500494,0.15,105360.0,105350.0,0.00076339]
[1737664500704,0.244912,105360.0,105350.0,0.00076339]
[1737664501293,0.267912,105360.0,105350.0,0.00076339]
[1737664501648,0.244912,105360.0,105350.0,0.00076339]
[1737664502273,0.26793,105340.0,105330.0,0.0001423]
[1737664502442,0.187939,105330.0,105320.0,0.0001424]
[1737664502641,0.187939,105330.0,105320.0,0.00029093]
[1737664502642,0.368739,105330.0,105320.0,0.00029093]
[1737664502843,0.295002,105260.0,105250.0,0.0001423]
[1737664503090,0.05,105260.0,105250.0,0.0001423]
[1737664503243,0.1155,105270.0,105250.0,0.0001423]
[1737664503457,0.02,105260.0,105250.0,0.0001423]
[1737664503657,0.295002,105260.0,105250.0,0.0001423]
[1737664503864,0.27702638,105260.0,105250.0,0.0001423]
[1737664504080,0.15,105260.0,105250.0,0.0951533]
[1737664504390,0.05,105270.0,105260.0,0.095002]
[1737664504594,0.05,105260.0,105250.0,0.28565246]
[1737664504795,0.209984,105280.0,105250.0,0.38066946]
[1737664504957,0.02,105260.0,105250.0,0.09564846]
[1737664505159,0.02,105280.0,105270.0,0.094993]
[1737664505390,0.094982,105290.0,105270.0,0.284976]
[1737664505596,0.094996,105270.0,105250.0,0.28566546]
[1737664505854,0.094996,105270.0,105250.0,0.09564546]
[1737664505855,0.334985,105270.0,105250.0,0.09564546]
[1737664506055,0.44503852,105270.0,105250.0,0.00063746]
[1737664506263,0.095002,105260.0,105250.0,0.00063746]
[1737664507442,0.05,105260.0,105250.0,0.09564346]
[1737664507642,0.05,105260.0,105250.0,0.00063746]
[1737664507848,0.73004052,105270.0,105250.0,0.09564746]
[1737664508086,0.05,105260.0,105250.0,0.00063746]
[1737664508286,0.145002,105260.0,105250.0,0.00063746]
[1737664508486,0.63503952,105270.0,105250.0,0.00063746]
[1737664508687,0.095002,105260.0,105250.0,0.00063746]
[1737664508886,0.04871592,105260.0,105250.0,0.09564546]
[1737664509167,0.44503852,105270.0,105260.0,0.095002]
[1737664509342,0.44503852,105270.0,105250.0,0.38066946]
[1737664509343,0.19871592,105270.0,105250.0,0.09564846]
[1737664509583,0.14371792,105260.0,105250.0,0.00063746]
[1737664509761,0.118002,105260.0,105250.0,0.00063746]
[1737664509963,0.095011,105250.0,105240.0,0.0001424]
[1737664510115,0.39004952,105250.0,105240.0,0.0001424]
[1737664510521,0.29503852,105250.0,105240.0,0.0951624]
[1737664510697,0.095011,105250.0,105240.0,0.0001424]
[1737664510913,0.0469,105260.0,105240.0,0.0001424]
[1737664511120,0.426911,105260.0,105240.0,0.0001424]
[1737664511325,0.023,105230.0,105210.0,0.0159106]
[1737664511534,0.138047,105210.0,105200.0,0.001]
[1737664511784,0.095094,105160.0,105140.0,0.0952464]
[1737664511995,0.095102,105150.0,105140.0,0.00063734]
[1737664512194,0.245102,105150.0,105140.0,0.00063734]
[1737664512463,0.04871592,105160.0,105140.0,0.00063734]
[1737664512783,0.14379092,105180.0,105160.0,0.285273]
[1737664512989,0.04871592,105150.0,105140.0,0.09574734]
[1737664513169,0.19871592,105160.0,105150.0,0.095102]
[1737664513377,0.095089,105170.0,105150.0,0.095102]
[1737664513586,0.095102,105150.0,105140.0,0.00063734]
[1737664513798,0.245102,105150.0,105140.0,0.00063734]
[1737664514517,0.245102,105150.0,105100.0,0.1119936]
[1737664514518,0.145138,105110.0,105100.0,0.0168506]
[1737664514718,0.095165,105080.0,105070.0,6e-05]
[1737664514922,0.268165,105080.0,105070.0,6e-05]
[1737664515130,0.245165,105080.0,105070.0,0.00020857]
[1737664515338,0.245165,105080.0,105070.0,0.09538257]
[1737664515339,0.15,105080.0,105070.0,0.09538257]
[1737664515544,0.04871592,105120.0,105070.0,0.19054257]
[1737664515779,0.48529552,105130.0,105100.0,0.285433]
[1737664515985,0.48529552,105130.0,105100.0,0.095145]
[1737664515986,0.095131,105120.0,105100.0,0.095145]
[1737664516188,0.15,105120.0,105110.0,0.095137]
[1737664516391,0.29385092,105120.0,105100.0,0.095146]
[1737664516603,0.04871592,105100.0,105070.0,0.190394]
[1737664516809,0.095165,105080.0,105070.0,6e-05]
[1737664517220,0.245201,105040.0,105030.0,0.0001426]
[1737664517430,0.245201,105040.0,105030.0,0.00063834]
[1737664517431,0.14391692,105040.0,105030.0,0.00063834]
[1737664517630,0.04871592,105040.0,105030.0,0.09584834]
[1737664517878,0.144489,105060.0,105040.0,0.2856]
[1737664518091,0.14391092,105050.0,105030.0,0.28625134]
[1737664518329,0.15,105040.0,105030.0,0.00063834]
[1737664518563,0.245201,105040.0,105030.0,0.00063834]
[1737664518775,0.15,105040.0,105030.0,0.00063834]
[1737664518990,0.245201,105040.0,105030.0,0.00063834]
[1737664519193,0.04871592,105040.0,105030.0,0.09584734]
[1737664519620,0.09518,105070.0,105050.0,0.095189]
[1737664519871,0.04871592,105050.0,105040.0,0.190387]
[1737664520114,0.095179,105070.0,105040.0,0.190387]
[1737664520328,0.15,105060.0,105050.0,0.095191]
[1737664520531,0.15,105060.0,105040.0,0.190387]